[Event "3rd FIDE WCCC Blitz G12 2019"]
[Site "Minsk"]
[Date "2019.08.18"]
[Round "3.6"]
[White "Ivanytska, Liudmyla"]
[Black "Nguyen, Thu An"]
[Result "*"]
[ECO "B01"]
[WhiteElo "1539"]
[BlackElo "1024"]
[Annotator "NA"]
[PlyCount "33"]
[EventDate "2019.08.18"]
[EventType "swiss"]
[EventCountry "BLR"]
[SourceTitle "playchess.com"]
[Source "ChessBase"]
[SourceQuality "1"]
[TimeControl "300+2"]

1. e4 {[%emt 0:00:00]} d5 {[%emt 0:00:00]} 2. exd5 {[%emt 0:00:00]} Qxd5 {[%emt 0:00:00]} 3. Nc3 {[%emt 0:00:01]} Qa5 {[%emt 0:00:01]} 4. d4 {[%emt 0:00:02]} c6 {[%emt 0:00:01]} 5. Nf3 {[%emt 0:00:04]} Bf5 {[%emt 0:00:01]} 6. Bc4 {[%emt 0:00:09]} Nf6 {[%emt 0:00:01]} 7. O-O {[%emt 0:00:05]} e6 {[%emt 0:00:01]} 8. Bb3 {[%emt 0:00:03]} Be7 {[%emt 0:00:02]} 9. Bd2 {[%emt 0:00:01]} Qc7 {[%emt 0:00:01]} 10. Re1 {[%emt 0:00:02]} O-O {[%emt 0:00:01]} 11. Ne5 {[%emt 0:00:02]} Nbd7 {[%emt 0:00:02]} 12. Bf4 {[%emt 0:00:09]} Bd6 {[%emt 0:00:03]} 13. h3 {[%emt 0:00:06]} h6 {[%emt 0:00:04]} 14. Qf3 {[%emt 0:00:12]} Rad8 {[%emt 0:00:19]} 15. Re2 {[%emt 0:00:25]} a6 {[%emt 0:00:46]} 16. Rae1 {[%emt 0:00:08]} c5 {[%emt 0:00:22]} 17. Nxd7 {[%emt 0:00:13]} *

[Event "3rd FIDE WCCC Blitz G12 2019"]
[Site "Minsk"]
[Date "2019.08.18"]
[Round "4.1"]
[White "Babic, Milana"]
[Black "Vlasova, Olesia"]
[Result "0-1"]
[ECO "A05"]
[WhiteElo "1689"]
[BlackElo "1799"]
[Annotator "NA"]
[PlyCount "126"]
[EventDate "2019.08.18"]
[EventType "swiss"]
[EventCountry "BLR"]
[SourceTitle "playchess.com"]
[Source "ChessBase"]
[SourceQuality "1"]
[TimeControl "300+2"]

1. Nf3 {[%emt 0:00:00]} Nf6 {[%emt 0:00:01]} 2. g3 {[%emt 0:00:00]} c5 {[%emt 0:00:01]} 3. c4 {[%emt 0:00:00]} g6 {[%emt 0:00:01]} 4. Nc3 {[%emt 0:00:01]} Bg7 {[%emt 0:00:02]} 5. Bg2 {[%emt 0:00:01]} O-O {[%emt 0:00:03]} 6. O-O {[%emt 0:00:02]} Nc6 {[%emt 0:00:12]} 7. e3 {[%emt 0:00:06]} a6 {[%emt 0:00:30]} 8. d4 {[%emt 0:00:03]} d6 {[%emt 0:00:12]} 9. d5 {[%emt 0:00:11]} Na5 {[%emt 0:00:11]} 10. Nd2 {[%emt 0:00:09]} Rb8 {[%emt 0:00:05]} 11. a4 {[%emt 0:00:47]} Bd7 {[%emt 0:00:14]} 12. e4 {[%emt 0:00:31]} b5 {[%emt 0:00:55]} 13. axb5 {[%emt 0:00:03]} axb5 {[%emt 0:00:00]} 14. cxb5 {[%emt 0:00:05]} Bxb5 {[%emt 0:00:06]} 15. Re1 {[%emt 0:00:37]} Qb6 {[%emt 0:00:50]} 16. e5 dxe5 {[%emt 0:00:54]} 17. Rxe5 {[%emt 0:00:45]} Rfe8 {[%emt 0:00:22]} 18. Re1 {[%emt 0:00:21]} Nc4 {[%emt 0:00:08]} 19. Nxc4 {[%emt 0:00:24]} Bxc4 {[%emt 0:00:02]} 20. Qf3 {[%emt 0:00:19]} Rbd8 {[%emt 0:00:06]} 21. Rd1 {[%emt 0:00:24]} Qb7 {[%emt 0:00:06]} 22. Be3 {[%emt 0:00:06]} Qxb2 {[%emt 0:00:07]} 23. Bxc5 {[%emt 0:00:07]} Nd7 {[%emt 0:00:12]} 24. Bd4 Ne5 {[%emt 0:00:06]} 25. Qe3 {[%emt 0:00:09]} Ng4 {[%emt 0:00:04]} 26. Qf3 {[%emt 0:00:03]} Bxd4 {[%emt 0:00:05]} 27. Rxd4 {[%emt 0:00:01]} Ne5 {[%emt 0:00:05]} 28. Qd1 {[%emt 0:00:17]} Qxc3 {[%emt 0:00:02]} 29. Rc1 Qb4 {[%emt 0:00:08]} 30. f4 {[%emt 0:00:01]} Nd7 {[%emt 0:00:03]} 31. Rdxc4 {[%emt 0:00:01]} Qb6+ {[%emt 0:00:01]} 32. Kh1 {[%emt 0:00:01]} Nf6 {[%emt 0:00:02]} 33. Rd4 {[%emt 0:00:01]} Qd6 {[%emt 0:00:01]} 34. Rc6 {[%emt 0:00:02]} Qa3 {[%emt 0:00:02]} 35. h3 {[%emt 0:00:07]} h5 {[%emt 0:00:01]} 36. Kh2 {[%emt 0:00:01]} Kg7 {[%emt 0:00:01]} 37. Qd2 {[%emt 0:00:02]} Qa7 {[%emt 0:00:02]} 38. Qc3 {[%emt 0:00:05]} Rd7 {[%emt 0:00:01]} 39. Rd3 {[%emt 0:00:04]} Red8 {[%emt 0:00:01]} 40. Bf3 {[%emt 0:00:03]} Kh7 {[%emt 0:00:04]} 41. Rc5 {[%emt 0:00:04]} Qa6 {[%emt 0:00:05]} 42. g4 {[%emt 0:00:04]} Qa2+ {[%emt 0:00:01]} 43. Kg3 {[%emt 0:00:06]} Qa7 {[%emt 0:00:02]} 44. Kh2 {[%emt 0:00:01]} Rb8 {[%emt 0:00:03]} 45. Kg3 {[%emt 0:00:03]} Qa2 {[%emt 0:00:01]} 46. Rd2 {[%emt 0:00:02]} Qa7 {[%emt 0:00:02]} 47. g5 {[%emt 0:00:02]} Ne8 {[%emt 0:00:02]} 48. Qd4 {[%emt 0:00:06]} Nd6 {[%emt 0:00:03]} 49. Qc3 {[%emt 0:00:03]} Nf5+ {[%emt 0:00:00]} 50. Kg2 {[%emt 0:00:01]} Rbd8 {[%emt 0:00:03]} 51. Rc6 {[%emt 0:00:00]} Qb7 {[%emt 0:00:02]} 52. Rc5 {[%emt 0:00:04]} e6 {[%emt 0:00:04]} 53. Kh2 {[%emt 0:00:03]} exd5 {[%emt 0:00:02]} 54. Qf6 {[%emt 0:00:04]} d4 {[%emt 0:00:05]} 55. Bxb7 {[%emt 0:00:02]} Rxb7 {[%emt 0:00:01]} 56. Rc4 {[%emt 0:00:02]} Rbd7 {[%emt 0:00:02]} 57. Rc1 {[%emt 0:00:01]} d3 {[%emt 0:00:01]} 58. Rcd1 {[%emt 0:00:00]} Kg8 {[%emt 0:00:04]} 59. Qc3 {[%emt 0:00:00]} Rd6 {[%emt 0:00:00]} 60. Rxd3 {[%emt 0:00:02]} Ne3 {[%emt 0:00:03]} 61. Kg3 {[%emt 0:00:02]} Nxd1 {[%emt 0:00:02]} 62. Rxd1 {[%emt 0:00:05]} Rxd1 {[%emt 0:00:00]} 63. Qc4 {[%emt 0:00:05]} Re8 {[%emt 0:00:03] time} 0-1

[Event "3rd FIDE WCCC Blitz G12 2019"]
[Site "Minsk"]
[Date "2019.08.18"]
[Round "4.2"]
[White "Shubenkova, Veronika"]
[Black "Nguyen, Le Cam Hien"]
[Result "0-1"]
[ECO "A04"]
[WhiteElo "1740"]
[BlackElo "1579"]
[Annotator "NA"]
[PlyCount "198"]
[EventDate "2019.08.18"]
[EventType "swiss"]
[EventCountry "BLR"]
[SourceTitle "playchess.com"]
[Source "ChessBase"]
[SourceQuality "1"]
[TimeControl "300+2"]

1. Nf3 {[%emt 0:00:00]} f5 {[%emt 0:00:00]} 2. d4 {[%emt 0:00:01]} Nf6 {[%emt 0:00:02]} 3. c4 {[%emt 0:00:04]} e6 {[%emt 0:00:02]} 4. Nc3 {[%emt 0:00:10]} Be7 {[%emt 0:00:02]} 5. e3 {[%emt 0:00:17]} d6 {[%emt 0:00:02]} 6. Bd3 {[%emt 0:00:02]} O-O {[%emt 0:00:02]} 7. O-O {[%emt 0:00:02]} h6 {[%emt 0:00:08]} 8. Nh4 {[%emt 0:00:14]} Qe8 {[%emt 0:00:03]} 9. Nf3 {[%emt 0:00:15]} g5 {[%emt 0:00:06]} 10. e4 Nc6 11. d5 {[%emt 0:00:53]} exd5 {[%emt 0:01:11]} 12. cxd5 {[%emt 0:00:21]} fxe4 {[%emt 0:00:07]} 13. Nxe4 {[%emt 0:00:07]} Nxe4 {[%emt 0:00:08]} 14. Bxe4 {[%emt 0:00:01]} Ne5 {[%emt 0:00:05]} 15. Nxe5 {[%emt 0:00:07]} dxe5 {[%emt 0:00:02]} 16. Qd3 {[%emt 0:00:04]} Bd6 {[%emt 0:00:16]} 17. Bd2 {[%emt 0:00:10]} Qf7 {[%emt 0:00:10]} 18. Rac1 {[%emt 0:00:22]} Bf5 {[%emt 0:00:12]} 19. Bxf5 {[%emt 0:00:25]} Qxf5 {[%emt 0:00:02]} 20. Qxf5 {[%emt 0:00:01]} Rxf5 {[%emt 0:00:01]} 21. f3 {[%emt 0:00:05]} Rd8 {[%emt 0:00:24]} 22. Rfd1 {[%emt 0:00:05]} b6 {[%emt 0:00:05]} 23. Be3 {[%emt 0:00:07]} Rf7 {[%emt 0:00:07]} 24. a3 {[%emt 0:00:06]} Kg7 {[%emt 0:00:04]} 25. Rc2 {[%emt 0:00:02]} Re8 {[%emt 0:00:06]} 26. Re2 {[%emt 0:00:04]} Kg6 {[%emt 0:00:04]} 27. h3 {[%emt 0:00:08]} e4 {[%emt 0:00:04]} 28. Bd4 {[%emt 0:00:07]} Rfe7 {[%emt 0:00:06]} 29. fxe4 {[%emt 0:00:04]} Rxe4 {[%emt 0:00:01]} 30. Rxe4 {[%emt 0:00:08]} Rxe4 {[%emt 0:00:01]} 31. Kf1 {[%emt 0:00:08]} Bg3 {[%emt 0:00:15]} 32. Bc3 {[%emt 0:00:35]} Bd6 {[%emt 0:00:22]} 33. Kf2 {[%emt 0:00:09]} Kf5 {[%emt 0:00:05]} 34. g4+ {[%emt 0:00:12]} Kg6 {[%emt 0:00:04]} 35. Rd3 {[%emt 0:00:02]} h5 {[%emt 0:00:04]} 36. gxh5+ {[%emt 0:00:08]} Kxh5 {[%emt 0:00:01]} 37. Bd2 {[%emt 0:00:01]} g4 {[%emt 0:00:07]} 38. hxg4+ {[%emt 0:00:02]} Kxg4 {[%emt 0:00:01]} 39. Be3 {[%emt 0:00:09]} Kf5 {[%emt 0:00:08]} 40. Kf3 {[%emt 0:00:03]} Rg4 {[%emt 0:00:06]} 41. Bf2 {[%emt 0:00:02]} Re4 {[%emt 0:00:10]} 42. Be3 {[%emt 0:00:01]} Re8 {[%emt 0:00:04]} 43. Bd4 {[%emt 0:00:06]} Re7 {[%emt 0:00:07]} 44. Be3 {[%emt 0:00:02]} Rh7 {[%emt 0:00:01]} 45. Kg2 {[%emt 0:00:08]} Ke4 {[%emt 0:00:03]} 46. Rc3 {[%emt 0:00:02]} Be5 {[%emt 0:00:06]} 47. Rb3 {[%emt 0:00:01]} Kxd5 {[%emt 0:00:04]} 48. Bf2 {[%emt 0:00:01]} Rg7+ {[%emt 0:00:03]} 49. Kf1 {[%emt 0:00:02]} Rg4 {[%emt 0:00:05]} 50. Rd3+ {[%emt 0:00:01]} Ke6 {[%emt 0:00:03]} 51. Rb3 {[%emt 0:00:01]} c5 {[%emt 0:00:05]} 52. Ke2 {[%emt 0:00:03]} Bd4 {[%emt 0:00:01]} 53. Bxd4 {[%emt 0:00:03]} Rxd4 {[%emt 0:00:01]} 54. Re3+ {[%emt 0:00:03]} Kd6 {[%emt 0:00:02]} 55. Re8 {[%emt 0:00:02]} Kc6 {[%emt 0:00:02]} 56. Re7 {[%emt 0:00:02]} a6 {[%emt 0:00:02]} 57. Ke3 {[%emt 0:00:02]} Rd1 {[%emt 0:00:02]} 58. Re6+ {[%emt 0:00:02]} Kb5 {[%emt 0:00:01]} 59. Ke2 {[%emt 0:00:03]} Rd5 {[%emt 0:00:02]} 60. Re3 {[%emt 0:00:01]} c4 {[%emt 0:00:02]} 61. Rc3 {[%emt 0:00:02]} Kc5 {[%emt 0:00:05]} 62. Ke3 {[%emt 0:00:02]} b5 {[%emt 0:00:03]} 63. Ke4 {[%emt 0:00:01]} Rd4+ {[%emt 0:00:02]} 64. Ke3 {[%emt 0:00:01]} Rd1 {[%emt 0:00:01]} 65. Ke2 {[%emt 0:00:02]} Rb1 {[%emt 0:00:02]} 66. Rc2 {[%emt 0:00:00]} Rh1 {[%emt 0:00:06]} 67. Ke3 {[%emt 0:00:03]} Rh3+ {[%emt 0:00:03]} 68. Ke4 {[%emt 0:00:01]} a5 {[%emt 0:00:02]} 69. Rg2 {[%emt 0:00:04]} Rh4+ {[%emt 0:00:05]} 70. Ke3 {[%emt 0:00:01]} Rh5 {[%emt 0:00:01]} 71. Ke4 {[%emt 0:00:01]} b4 {[%emt 0:00:05]} 72. axb4+ {[%emt 0:00:06]} Kxb4 {[%emt 0:00:02]} 73. Rc2 {[%emt 0:00:02]} Rh4+ {[%emt 0:00:04]} 74. Kd5 {[%emt 0:00:02]} a4 {[%emt 0:00:03]} 75. Rg2 {[%emt 0:00:02]} Kb3 {[%emt 0:00:06]} 76. Kc5 {[%emt 0:00:02]} a3 {[%emt 0:00:04]} 77. bxa3 {[%emt 0:00:01]} Kxa3 {[%emt 0:00:01]} 78. Rg3+ {[%emt 0:00:03]} Kb2 {[%emt 0:00:02]} 79. Rg2+ {[%emt 0:00:03]} Kb3 {[%emt 0:00:01]} 80. Kb5 {[%emt 0:00:04]} c3 {[%emt 0:00:01]} 81. Rg3 {[%emt 0:00:01]} Kb2 {[%emt 0:00:02]} 82. Rg2+ {[%emt 0:00:04]} c2 {[%emt 0:00:01]} 83. Kc5 {[%emt 0:00:00]} Kb1 {[%emt 0:00:00]} 84. Rg1+ {[%emt 0:00:03]} c1=Q+ {[%emt 0:00:00]} 85. Rxc1+ {[%emt 0:00:01]} Kxc1 {[%emt 0:00:00]} 86. Kd5 {[%emt 0:00:00]} Kd2 {[%emt 0:00:00]} 87. Ke5 {[%emt 0:00:01]} Kd3 {[%emt 0:00:00]} 88. Kd5 {[%emt 0:00:01]} Rh5+ {[%emt 0:00:00]} 89. Ke6 {[%emt 0:00:01]} Kd4 {[%emt 0:00:00]} 90. Kf6 {[%emt 0:00:01]} Rb5 {[%emt 0:00:00]} 91. Ke6 {[%emt 0:00:01]} Ra5 {[%emt 0:00:00]} 92. Kf6 {[%emt 0:00:01]} Ke4 {[%emt 0:00:00]} 93. Kg6 {[%emt 0:00:01]} Kf4 {[%emt 0:00:00]} 94. Kh6 {[%emt 0:00:01]} Rg5 {[%emt 0:00:00]} 95. Kh7 {[%emt 0:00:02]} Kf5 {[%emt 0:00:00]} 96. Kh6 {[%emt 0:00:01]} Rg2 {[%emt 0:00:00]} 97. Kh7 {[%emt 0:00:01]} Kf6 {[%emt 0:00:00]} 98. Kh8 {[%emt 0:00:02]} Kf7 {[%emt 0:00:00]} 99. Kh7 {[%emt 0:00:00]} Rh2# {[%emt 0:00:00]} 0-1

[Event "3rd FIDE WCCC Blitz G12 2019"]
[Site "Minsk"]
[Date "2019.08.18"]
[Round "4.3"]
[White "Vu, My Linh"]
[Black "Ivanytska, Liudmyla"]
[Result "1-0"]
[ECO "D02"]
[WhiteElo "1467"]
[BlackElo "1539"]
[Annotator "NA"]
[PlyCount "161"]
[EventDate "2019.08.18"]
[EventType "swiss"]
[EventCountry "BLR"]
[SourceTitle "playchess.com"]
[Source "ChessBase"]
[SourceQuality "1"]
[TimeControl "300+2"]

1. d4 {[%emt 0:00:00]} d5 {[%emt 0:00:00]} 2. Nf3 {[%emt 0:00:00]} Nf6 {[%emt 0:00:00]} 3. g3 {[%emt 0:00:01]} b6 {[%emt 0:00:01]} 4. Bg2 {[%emt 0:00:01]} Bb7 {[%emt 0:00:01]} 5. O-O {[%emt 0:00:02]} e6 {[%emt 0:00:00]} 6. b3 {[%emt 0:00:04]} Bd6 {[%emt 0:00:04]} 7. Bb2 {[%emt 0:00:02]} Nbd7 {[%emt 0:00:01]} 8. c4 {[%emt 0:00:01]} O-O {[%emt 0:00:02]} 9. Nc3 {[%emt 0:00:01]} c5 {[%emt 0:00:01]} 10. Nb5 {[%emt 0:00:02]} Qe7 {[%emt 0:00:05]} 11. Nxd6 {[%emt 0:00:03]} Qxd6 {[%emt 0:00:01]} 12. Rc1 {[%emt 0:00:07]} Rac8 {[%emt 0:00:01]} 13. cxd5 {[%emt 0:00:05]} exd5 {[%emt 0:00:01]} 14. Ne5 {[%emt 0:00:07]} Qe6 {[%emt 0:00:10]} 15. Nxd7 {[%emt 0:00:06]} Nxd7 {[%emt 0:00:02]} 16. e3 {[%emt 0:00:01]} Rc7 {[%emt 0:00:10]} 17. Qd2 {[%emt 0:00:12]} Rfc8 {[%emt 0:00:03]} 18. Rfd1 {[%emt 0:00:05]} c4 {[%emt 0:00:11]} 19. bxc4 {[%emt 0:00:06]} Rxc4 {[%emt 0:00:01]} 20. Rxc4 {[%emt 0:00:07]} Rxc4 {[%emt 0:00:01]} 21. Rc1 {[%emt 0:00:03]} b5 {[%emt 0:00:02]} 22. Bf1 {[%emt 0:00:32]} Rxc1 {[%emt 0:00:01]} 23. Qxc1 {[%emt 0:00:02]} Qc6 {[%emt 0:00:01]} 24. Qb1 {[%emt 0:00:23]} h6 {[%emt 0:00:09]} 25. Qf5 {[%emt 0:00:13]} Bc8 {[%emt 0:00:10]} 26. Bd3 {[%emt 0:00:11]} Nf6 {[%emt 0:00:01]} 27. Qe5 {[%emt 0:00:10]} a6 {[%emt 0:00:16]} 28. Qb8 {[%emt 0:00:06]} Qb7 {[%emt 0:00:05]} 29. Qd6 {[%emt 0:00:15]} Qd7 {[%emt 0:00:05]} 30. Qf4 {[%emt 0:00:16]} a5 {[%emt 0:00:36]} 31. Qb8 {[%emt 0:00:03]} b4 {[%emt 0:00:01]} 32. Ba6 {[%emt 0:00:02]} Kh7 {[%emt 0:00:13]} 33. Bxc8 {[%emt 0:00:08]} Qc6 {[%emt 0:00:06]} 34. Bf5+ {[%emt 0:00:09]} g6 {[%emt 0:00:01]} 35. Bb1 {[%emt 0:00:01]} Qc4 {[%emt 0:00:06]} 36. Qf4 {[%emt 0:00:04]} Kg7 {[%emt 0:00:04]} 37. e4 {[%emt 0:00:08]} g5 {[%emt 0:00:01]} 38. Qf5 {[%emt 0:00:07]} Qe2 {[%emt 0:00:20]} 39. e5 {[%emt 0:00:05]} Ng8 {[%emt 0:00:16]} 40. Qc2 {[%emt 0:00:19]} Qe1+ {[%emt 0:00:10]} 41. Kg2 {[%emt 0:00:01]} a4 {[%emt 0:00:01]} 42. Qh7+ {[%emt 0:00:29]} Kf8 {[%emt 0:00:01]} 43. a3 {[%emt 0:00:06]} b3 {[%emt 0:00:06]} 44. Qd3 {[%emt 0:00:02]} Ne7 {[%emt 0:00:20]} 45. Bc3 {[%emt 0:00:11]} Qc1 {[%emt 0:00:01]} 46. Bb4 {[%emt 0:00:05]} b2 {[%emt 0:00:13]} 47. Qc2 {[%emt 0:00:04]} Ke8 {[%emt 0:00:03]} 48. Qxa4+ {[%emt 0:00:07]} Kf8 {[%emt 0:00:10]} 49. Qc2 {[%emt 0:00:03]} Ke8 {[%emt 0:00:02]} 50. Bc3 {[%emt 0:00:02]} Nc6 {[%emt 0:00:21]} 51. Bxb2 {[%emt 0:00:07]} Qxc2 {[%emt 0:00:02]} 52. Bxc2 {[%emt 0:00:01]} Kd7 {[%emt 0:00:01]} 53. Bb3 {[%emt 0:00:03]} Ke6 {[%emt 0:00:02]} 54. f4 {[%emt 0:00:06]} Na5 {[%emt 0:00:04]} 55. Ba2 {[%emt 0:00:01]} gxf4 {[%emt 0:00:04]} 56. gxf4 {[%emt 0:00:01]} f6 {[%emt 0:00:04]} 57. Kf3 {[%emt 0:00:03]} fxe5 {[%emt 0:00:07]} 58. fxe5 {[%emt 0:00:10]} Nc6 {[%emt 0:00:02]} 59. Bc3 {[%emt 0:00:04]} Ne7 {[%emt 0:00:05]} 60. a4 {[%emt 0:00:01]} Kf5 {[%emt 0:00:03]} 61. Bb4 {[%emt 0:00:03]} Nc6 {[%emt 0:00:02]} 62. Bc3 {[%emt 0:00:02]} Ne7 {[%emt 0:00:05]} 63. a5 {[%emt 0:00:02]} Ke6 {[%emt 0:00:01]} 64. a6 {[%emt 0:00:05]} Nc6 {[%emt 0:00:03]} 65. Bb3 {[%emt 0:00:02]} h5 {[%emt 0:00:09]} 66. Ba4 {[%emt 0:00:02]} Na7 {[%emt 0:00:02]} 67. Bb4 {[%emt 0:00:01]} h4 {[%emt 0:00:02]} 68. Bc5 {[%emt 0:00:01]} h3 {[%emt 0:00:03]} 69. Bxa7 {[%emt 0:00:02]} Ke7 {[%emt 0:00:01]} 70. Bc5+ {[%emt 0:00:01]} Kd8 {[%emt 0:00:01]} 71. a7 {[%emt 0:00:01]} Kc7 {[%emt 0:00:01]} 72. Bc6 {[%emt 0:00:07]} Kxc6 {[%emt 0:00:03]} 73. a8=Q+ {[%emt 0:00:02]} Kb5 {[%emt 0:00:02]} 74. Qb7+ {[%emt 0:00:02]} Kc4 {[%emt 0:00:01]} 75. Qb4+ {[%emt 0:00:02]} Kd3 {[%emt 0:00:01]} 76. Qb3+ {[%emt 0:00:01]} Kd2 {[%emt 0:00:01]} 77. Bb4+ {[%emt 0:00:02]} Kc1 {[%emt 0:00:02]} 78. Qc3+ {[%emt 0:00:04]} Kb1 {[%emt 0:00:02]} 79. Qd2 {[%emt 0:00:05]} Ka1 {[%emt 0:00:01]} 80. Bc3+ {[%emt 0:00:01]} Kb1 {[%emt 0:00:02]} 81. Qb2# 1-0

[Event "3rd FIDE WCCC Blitz G12 2019"]
[Site "Minsk"]
[Date "2019.08.18"]
[Round "4.4"]
[White "Basova, Yuliya"]
[Black "Kaldarova, Ayaulym"]
[Result "0-1"]
[ECO "C03"]
[WhiteElo "1770"]
[BlackElo "1476"]
[Annotator "NA"]
[PlyCount "132"]
[EventDate "2019.08.18"]
[EventType "swiss"]
[EventCountry "BLR"]
[SourceTitle "playchess.com"]
[Source "ChessBase"]
[SourceQuality "1"]
[TimeControl "300+2"]

1. e4 {[%emt 0:00:00]} e6 {[%emt 0:00:00]} 2. d4 {[%emt 0:00:01]} d5 {[%emt 0:00:00]} 3. Nd2 {[%emt 0:00:01]} Nc6 {[%emt 0:00:05]} 4. Bb5 {[%emt 0:00:09]} Bd7 {[%emt 0:00:08]} 5. exd5 {[%emt 0:00:22]} exd5 {[%emt 0:00:01]} 6. c3 {[%emt 0:00:08]} Nf6 {[%emt 0:00:04]} 7. Ngf3 {[%emt 0:00:04]} Be7 {[%emt 0:00:06]} 8. O-O {[%emt 0:00:07]} O-O {[%emt 0:00:01]} 9. Re1 {[%emt 0:00:04]} Bg4 {[%emt 0:00:06]} 10. Bxc6 {[%emt 0:00:25]} bxc6 {[%emt 0:00:01]} 11. Qc2 {[%emt 0:00:02]} Bd6 {[%emt 0:00:37]} 12. Ne5 {[%emt 0:00:11]} Re8 {[%emt 0:00:10]} 13. Ndf3 {[%emt 0:00:14]} c5 {[%emt 0:00:10]} 14. Bg5 {[%emt 0:00:20]} h6 {[%emt 0:00:22]} 15. Bh4 {[%emt 0:00:13]} cxd4 {[%emt 0:00:11]} 16. cxd4 {[%emt 0:00:03]} Bxf3 {[%emt 0:00:28]} 17. Nxf3 {[%emt 0:00:11]} Be7 {[%emt 0:00:14]} 18. Ne5 {[%emt 0:00:14]} Qd6 {[%emt 0:00:03]} 19. Bg3 {[%emt 0:00:13]} Qb6 {[%emt 0:00:11]} 20. Nc6 {[%emt 0:00:22]} Bd6 {[%emt 0:00:02]} 21. Bxd6 {[%emt 0:00:12]} cxd6 {[%emt 0:00:00]} 22. Ne7+ {[%emt 0:00:17]} Kh8 {[%emt 0:00:03]} 23. Nf5 {[%emt 0:00:13]} Ne4 {[%emt 0:00:17]} 24. f3 {[%emt 0:00:29]} Nf6 {[%emt 0:00:03]} 25. Qd2 {[%emt 0:00:13]} Kh7 {[%emt 0:00:11]} 26. Kh1 {[%emt 0:00:14]} Rab8 {[%emt 0:00:03]} 27. b3 {[%emt 0:00:03]} Re6 {[%emt 0:00:16]} 28. Qd3 {[%emt 0:00:14]} Kh8 {[%emt 0:00:22]} 29. Rxe6 fxe6 {[%emt 0:00:01]} 30. Ne7 {[%emt 0:00:12]} Re8 {[%emt 0:00:22]} 31. Ng6+ {[%emt 0:00:03]} Kg8 {[%emt 0:00:01]} 32. Rd1 {[%emt 0:00:02]} e5 {[%emt 0:00:03]} 33. dxe5 {[%emt 0:00:03]} dxe5 {[%emt 0:00:01]} 34. Nh4 {[%emt 0:00:08]} Qd4 {[%emt 0:00:19]} 35. Qxd4 exd4 {[%emt 0:00:00]} 36. Kg1 {[%emt 0:00:12]} Re2 {[%emt 0:00:09]} 37. Rxd4 {[%emt 0:00:03]} Rxa2 {[%emt 0:00:01]} 38. Nf5 {[%emt 0:00:02]} Kf7 {[%emt 0:00:04]} 39. Nd6+ {[%emt 0:00:01]} Ke6 {[%emt 0:00:04]} 40. Nb5 {[%emt 0:00:02]} Ra5 {[%emt 0:00:13]} 41. Nc7+ {[%emt 0:00:02]} Kd6 {[%emt 0:00:04]} 42. Na8 {[%emt 0:00:04]} Rb5 {[%emt 0:00:03]} 43. Rd3 {[%emt 0:00:04]} Rb8 {[%emt 0:00:02]} 44. Nc7 {[%emt 0:00:08]} Kxc7 {[%emt 0:00:01]} 45. Rc3+ {[%emt 0:00:00]} Kd6 {[%emt 0:00:01]} 46. Kf2 {[%emt 0:00:01]} d4 {[%emt 0:00:01]} 47. Rd3 {[%emt 0:00:01]} Kd5 {[%emt 0:00:01]} 48. Ke2 {[%emt 0:00:01]} Rc8 {[%emt 0:00:02]} 49. f4 {[%emt 0:00:02]} Rc3 {[%emt 0:00:01]} 50. Rxc3 {[%emt 0:00:03]} dxc3 {[%emt 0:00:01]} 51. Kd3 {[%emt 0:00:01]} Ne4 {[%emt 0:00:01]} 52. g3 {[%emt 0:00:03]} a5 {[%emt 0:00:12]} 53. g4 {[%emt 0:00:04]} Kc5 {[%emt 0:00:01]} 54. f5 {[%emt 0:00:02]} Kb4 {[%emt 0:00:02]} 55. Kc2 {[%emt 0:00:02]} Nc5 {[%emt 0:00:03]} 56. h4 {[%emt 0:00:01]} Nxb3 {[%emt 0:00:02]} 57. g5 {[%emt 0:00:01]} Nd4+ {[%emt 0:00:01]} 58. Kc1 {[%emt 0:00:01]} Nxf5 {[%emt 0:00:01]} 59. gxh6 {[%emt 0:00:02]} gxh6 {[%emt 0:00:01]} 60. h5 {[%emt 0:00:01]} Ng3 {[%emt 0:00:01]} 61. Kc2 {[%emt 0:00:02]} Nxh5 {[%emt 0:00:01]} 62. Kc1 {[%emt 0:00:00]} a4 {[%emt 0:00:02]} 63. Kb1 {[%emt 0:00:02]} a3 {[%emt 0:00:00]} 64. Ka2 {[%emt 0:00:02]} c2 {[%emt 0:00:02]} 65. Ka1 {[%emt 0:00:01]} c1=Q+ {[%emt 0:00:02]} 66. Ka2 {[%emt 0:00:01]} Qb2# {[%emt 0:00:01]} 0-1

[Event "3rd FIDE WCCC Blitz G12 2019"]
[Site "Minsk"]
[Date "2019.08.18"]
[Round "4.5"]
[White "Komissarova, Soigina"]
[Black "Lomakina, Anzhelika"]
[Result "0-1"]
[ECO "A20"]
[WhiteElo "1663"]
[BlackElo "1732"]
[Annotator "NA"]
[PlyCount "86"]
[EventDate "2019.08.18"]
[EventType "swiss"]
[EventCountry "BLR"]
[SourceTitle "playchess.com"]
[Source "ChessBase"]
[SourceQuality "1"]
[TimeControl "300+2"]

1. c4 {[%emt 0:00:00]} e5 {[%emt 0:00:00]} 2. g3 {[%emt 0:00:01]} Nf6 {[%emt 0:00:00]} 3. Bg2 {[%emt 0:00:01]} d5 {[%emt 0:00:00]} 4. cxd5 {[%emt 0:00:01]} Nxd5 {[%emt 0:00:01]} 5. Nc3 {[%emt 0:00:01]} Nb6 {[%emt 0:00:01]} 6. Nf3 {[%emt 0:00:04]} Nc6 7. d3 Be7 {[%emt 0:00:01]} 8. O-O {[%emt 0:00:02]} O-O {[%emt 0:00:01]} 9. b3 {[%emt 0:00:03]} Bg4 {[%emt 0:00:13]} 10. Bb2 {[%emt 0:00:02]} Re8 {[%emt 0:00:04]} 11. h3 {[%emt 0:00:03]} Bh5 {[%emt 0:00:18]} 12. Rc1 {[%emt 0:00:20]} f5 {[%emt 0:00:18]} 13. e3 {[%emt 0:00:18]} Bf6 {[%emt 0:00:27]} 14. Ne2 {[%emt 0:00:19]} Qd6 {[%emt 0:01:26]} 15. Qc2 {[%emt 0:00:15]} Rac8 {[%emt 0:01:20]} 16. a3 {[%emt 0:00:01]} Qe6 {[%emt 0:00:40]} 17. Kh2 {[%emt 0:00:13]} Red8 {[%emt 0:00:14]} 18. Rfe1 {[%emt 0:00:42]} Kh8 {[%emt 0:00:16]} 19. d4 {[%emt 0:00:12]} exd4 {[%emt 0:00:07]} 20. Nexd4 {[%emt 0:00:15]} Nxd4 {[%emt 0:00:01]} 21. Nxd4 {[%emt 0:00:11]} Bxd4 {[%emt 0:00:04]} 22. exd4 {[%emt 0:00:10]} Qf7 {[%emt 0:00:01]} 23. Bxb7 {[%emt 0:00:08]} Rb8 {[%emt 0:00:03]} 24. Bg2 {[%emt 0:00:07]} f4 {[%emt 0:00:01]} 25. Qxc7 {[%emt 0:00:08]} Qxb3 26. Rb1 {[%emt 0:00:28]} fxg3+ {[%emt 0:00:07]} 27. fxg3 {[%emt 0:00:01]} Qd3 {[%emt 0:00:02]} 28. d5 {[%emt 0:00:03]} Rg8 {[%emt 0:00:05]} 29. d6 {[%emt 0:00:06]} Rbc8 {[%emt 0:00:01]} 30. Qb7 {[%emt 0:00:41]} Qc2 {[%emt 0:00:05]} 31. d7 Rcd8 32. Bd4 {[%emt 0:00:26]} Rxd7 {[%emt 0:00:01]} 33. Qe4 {[%emt 0:00:17]} Qxe4 {[%emt 0:00:02]} 34. Rxe4 {[%emt 0:00:00]} Bg6 {[%emt 0:00:02]} 35. Bxb6 {[%emt 0:00:11]} Bxe4 {[%emt 0:00:03]} 36. Bxe4 {[%emt 0:00:01]} axb6 {[%emt 0:00:01]} 37. Rxb6 {[%emt 0:00:00]} g6 {[%emt 0:00:03]} 38. Ra6 {[%emt 0:00:05]} Rd2+ {[%emt 0:00:02]} 39. Bg2 {[%emt 0:00:02]} Re8 {[%emt 0:00:03]} 40. a4 {[%emt 0:00:03]} Ree2 {[%emt 0:00:02]} 41. Ra8+ {[%emt 0:00:02]} Kg7 {[%emt 0:00:00]} 42. a5 {[%emt 0:00:00]} Rxg2+ {[%emt 0:00:02]} 43. Kh1 {[%emt 0:00:01]} Rh2+ {[%emt 0:00:00] Kxh2 Rxh2 a6 Ra2 Ra7+} 0-1